Cogmind - Beta 14 @@@ ROGUE MODE // 2024.09.20 @ 21:21:08 Player: Wulphy Result: Destroyed by H-88 Terminator with Heavy Machine Gun Performance ------------- Evolutions (8) 4000 Regions Visited (26) 5200 Robots Destroyed (279) 1395 Value Destroyed (14438) 14438 Prototype IDs (87) 1740 Alien Tech Used (9) 1800 Bonus (8917) 8917 TOTAL SCORE: 37490 Bonus ------- High Alert Combat Kills 908 Follower Combat Kills 3380 Network Hubs Disabled 400 Registered with UFD 300 Met Zhirov 300 Met Warlord at Base 500 MAIN.C Attacked Warlord 500 Built Enhanced Grunts 300 Met R17 at Cetus 500 Read Decrypted Archives 300 Met R17 at Research 2000 Friendly Fire -471 Cogmind --------- Core Integrity 0/1450 Matter 266/300 Energy 294/440 System Corruption 45% Temperature Cool (6) Movement Treading (232) Ox1 Location -2/Section 7 Parts ------- > --- POWER (2) -------- Light Quantum Reactor Reinforced Quantum Reactor > --- PROPULSION (6) --- Centrium Heavy Treads Biometal Heavy Treads > --- UTILITY (12) ----- Experimental Coolant Injector Huge Storage Unit Experimental Optical Array Experimental Targeting Computer Experimental Core Analyzer Phase Armor Experimental Thermal Shield Advanced Force Field Experimental System Shield Microwarp Drive > --- WEAPON (3) ------- Heavy Autocannon > --- INVENTORY (25) --- Experimental Cooling System Advanced Energy Well (0) Experimental Matter Compressor (309) Experimental Terrain Scanner Seismic Detector Improved Transmission Jammer Antimissile System Long-range Tractor Beam Integrated Dissipator Subatomic Replicator Spacefold Activator Fusion Bomb Launcher Sigix Terminator (1) Plasma Cutter Multitool Sigix Broadsword Large Botcube Peak State ------------ > --- POWER ------------ Cooled Antimatter Reactor Reinforced Quantum Reactor > --- PROPULSION ------- Biometal Heavy Treads Advanced Heavy Siege Treads Advanced Heavy Siege Treads > --- UTILITY ---------- Huge Storage Unit Advanced Energy Well Experimental Optical Array Experimental Terrain Scanner Experimental Targeting Computer Experimental Core Analyzer Advanced Transmission Jammer Advanced Force Field Experimental System Shield Improved System Guard Microwarp Drive > --- WEAPON ----------- Graviton Cannon Sigix Broadsword > --- INVENTORY -------- Light Quantum Reactor Centrium Heavy Treads Experimental Coolant Injector Experimental Matter Compressor Seismic Detector Improved Transmission Jammer Phase Armor Experimental Thermal Shield Antimissile System Long-range Tractor Beam Integrated Dissipator Subatomic Replicator Spacefold Activator Heavy Autocannon Fusion Bomb Launcher Sigix Terminator Plasma Cutter Multitool Large Botcube [Rating: 232] Favorites ----------- Power Quantum Reactor Engine Light Ion Engine Power Core Neutrino Core Reactor Quantum Reactor Propulsion Centrium Heavy Treads Treads Centrium Heavy Treads Wheel Armored Wheel Utility Huge Storage Unit Device Seismic Detector Storage Huge Storage Unit Processor Enhanced Optical Array Hackware Advanced Hacking Suite Protection Enhanced Scrap Shield Artifact Phase Armor Weapon Advanced KE Penetrator Energy Gun Enhanced Force Rifle Energy Cannon Particle Cannon Ballistic Gun Advanced KE Penetrator Ballistic Cannon Hardcell Cannon Launcher Micro-nuke Launcher Special Weapon Plasma Cutter Slashing Weapon Sigix Broadsword Build | -11 -10 -10 -9 -9 -6 -6 -6 -6 -6 -5 -5 -5 -5 -4 -4 -4 -4 -4 -4 -4 -3 -3 -3 -2 -2 -2 ------- Run | Yrd Mat Sub Rec Scr Fac Ext Cet Arc Hub Fac Upp Upp Zhi Pro Fac Was Fac Upp Upp War Pro Res Qua Res Tes Sec Slots Evolved 16 | . . . . . 8 . . . . 2 . . . . 2 . . . . . . 2 . 2 . . Power 1 | . . . . . 1 . . . . . . . . . . . . . . . . . . . . . Propulsion 4 | . . . . . 2 . . . . . . . . . . . . . . . . 2 . . . . Utility 10 | . . . . . 4 . . . . 2 . . . . 2 . . . . . . . . 2 . . Weapon 1 | . . . . . 1 . . . . . . . . . . . . . . . . . . . . . Parts Attached 634 | 8 15 15 9 4 63 24 18 1 46 51 10 5 8 3 36 3 9 11 . 18 13 26 61 54 58 65 Power 34 | 1 3 1 2 1 4 . 3 . 2 3 . 1 1 . 1 1 . 2 . 1 . . . 3 2 2 Engine 11 | 1 2 1 2 . 3 . . . 2 . . . . . . . . . . . . . . . . . Core 5 | . 1 . . 1 1 . . . . 2 . . . . . . . . . . . . . . . . Reactor 18 | . . . . . . . 3 . . 1 . 1 1 . 1 1 . 2 . 1 . . . 3 2 2 Propulsion 39 | 2 . 4 2 . 7 4 4 . . 2 . . . . 1 . . . . . . 1 4 1 5 2 Treads 30 | 2 . 2 . . 2 4 4 . . 2 . . . . 1 . . . . . . 1 4 1 5 2 Leg . | . . . . . . . . . . . . . . . . . . . . . . . . . . . Wheel 9 | . . 2 2 . 5 . . . . . . . . . . . . . . . . . . . . . Hover . | . . . . . . . . . . . . . . . . . . . . . . . . . . . Flight . | . . . . . . . . . . . . . . . . . . . . . . . . . . . Utility 394 | 2 7 5 3 . 32 10 5 . 33 35 10 4 6 1 28 2 6 6 . 8 10 17 47 38 31 48 Device 331 | 1 6 4 2 . 25 6 2 . 31 27 8 4 3 1 27 2 6 5 . 5 9 12 43 34 30 38 Storage 21 | 1 1 1 . . . . 1 . . 2 . . 2 . . . . 1 . . . 2 1 3 . 6 Processor 13 | . . . . . 3 1 . . 1 2 1 . . . . . . . . 3 . 1 . . 1 . Hackware 10 | . . . . . 1 1 . . . 2 . . . . 1 . . . . . . 1 3 . . 1 Protection 15 | . . . 1 . 3 2 2 . 1 2 1 . 1 . . . . . . . 1 1 . . . . Artifact 4 | . . . . . . . . . . . . . . . . . . . . . . . . 1 . 3 Weapon 167 | 3 5 5 2 3 20 10 6 1 11 11 . . 1 2 6 . 3 3 . 9 3 8 10 12 20 13 Energy Gun 42 | 2 4 . . . 11 3 3 1 3 6 . . 1 1 3 . . 1 . 2 . . . . 1 . Energy Cannon 30 | . . 3 1 3 9 1 . . 3 1 . . . . . . . . . 1 . 2 1 2 2 1 Ballistic Gun 17 | 1 . . . . . 3 3 . 3 3 . . . . 1 . 3 . . . . . . . . . Ballistic Cannon 44 | . . . . . . . . . . . . . . . . . . 2 . 5 2 4 8 6 10 7 Launcher 9 | . . 1 . . . . . . . 1 . . . . . . . . . . . . . 4 2 1 Special Weapon 15 | . 1 . . . . 3 . . 2 . . . . 1 2 . . . . 1 1 2 1 . . 1 Impact Weapon . | . . . . . . . . . . . . . . . . . . . . . . . . . . . Slashing Weapon 10 | . . 1 1 . . . . . . . . . . . . . . . . . . . . . 5 3 Piercing Weapon . | . . . . . . . . . . . . . . . . . . . . . . . . . . . Special Melee Weapon . | . . . . . . . . . . . . . . . . . . . . . . . . . . . Unidentified Prototypes 49 | . . 1 . . 2 . 4 . 2 6 1 1 3 . . . . 1 . 6 . 1 2 4 6 9 Corrupted Parts 2 | . . . . . . . 1 . . . . . . . . . . . . 1 . . . . . . System Corruption 10 | . . . . . . . 2 . . . . . . . . . . . . 8 . . . . . . Parts Lost 29 | . . 3 1 . 3 1 1 1 . 1 . . . . . 3 . . . . . 1 5 1 2 6 Power 4 | . . 1 1 . . . . . . . . . . . . 1 . . . . . . . . . 1 Propulsion 5 | . . 1 . . . 1 1 . . . . . . . . . . . . . . . . . . 2 Utility 12 | . . . . . 1 . . 1 . . . . . . . . . . . . . 1 4 1 2 2 Weapon 8 | . . 1 . . 2 . . . . 1 . . . . . 2 . . . . . . 1 . . 1 Highest Loss Streak 3 | . . 2 1 . 3 1 1 1 . 1 . . . . . 3 . . . . . 1 2 1 2 2 To Critical Strikes 1 | . . . . . . . 1 . . . . . . . . . . . . . . . . . . . Average Slot Usage (%) 87 | . 100 99 100 100 98 99 92 86 86 86 83 84 83 84 85 81 82 84 84 81 77 76 79 72 76 77 Engine 4 | . 9 13 14 10 9 13 2 . 2 1 . . . . . . . . . . . . . . . . Core 1 | . 4 . . 3 2 . . . . 3 5 5 2 . . . . . . . . . . . . . Reactor 4 | . . . . . . . 10 13 10 5 5 5 7 10 9 8 10 10 10 8 5 4 4 3 6 8 Treads 11 | . 28 17 . . 5 19 19 13 13 10 10 10 10 10 9 9 10 10 10 10 10 14 13 13 12 12 Wheel 5 | . . 10 28 28 20 6 . . . . . . . . . . . . . . . . . . . . Device 13 | . 14 14 13 14 9 7 13 20 13 9 5 5 4 5 13 14 15 16 21 19 14 13 17 16 15 15 Storage 7 | . 14 14 14 14 6 6 6 6 6 5 5 5 5 5 4 4 5 5 5 5 5 4 4 4 4 5 Processor 9 | . . . . . 16 12 5 . 6 8 10 10 10 10 9 9 10 10 10 12 21 19 14 13 14 16 Hackware 3 | . . . . . 1 5 6 6 6 7 5 5 5 5 4 4 5 5 5 3 . . 9 8 7 3 Protection 4 | . . . . . 4 5 6 6 6 9 10 10 10 10 9 9 10 8 5 5 5 4 . . . . Energy Gun 5 | . 13 . . . 8 15 12 6 6 12 15 15 15 15 9 10 5 4 5 2 . . . . . . Energy Cannon 6 | . . 27 27 28 11 . . . . . . . . . . . . . . . . . . . . . Ballistic Gun 4 | . 14 . . . . 3 6 13 11 9 10 10 10 10 10 8 12 10 . . . . . . . . Ballistic Cannon 2 | . . . . . . . . . . . . . . . . . . 3 10 9 11 12 12 7 4 4 Peak Build Rating 232 | 8 13 16 18 27 70 68 122 120 124 147 148 150 153 153 164 165 159 161 143 155 160 180 183 221 229 232 Average Rating 119 | 5 9 14 15 20 61 65 97 119 118 136 145 149 149 152 156 152 151 150 143 142 154 173 177 211 220 222 On Entrance 115 | . 8 10 16 17 27 64 66 120 115 110 142 148 150 153 147 161 138 154 143 143 149 156 173 183 213 225 Naked Turns . | . . . . . . . . . . . . . . . . . . . . . . . . . . . Heaviest Build 239 | 12 31 52 56 67 109 104 152 152 150 157 159 159 158 155 164 160 167 162 160 160 170 188 184 233 233 239 Greatest Support 240 | 40 40 40 28 24 48 96 160 160 160 160 160 160 160 160 160 160 160 160 160 160 160 240 240 240 240 240 Greatest Overweight (x) 8 | 2 . 1 2 2 4 8 . . . . . . . . 1 . 1 1 . . 1 . 1 . 1 1 Average Overweight (x) . | . . . 1 2 2 1 . . . . . . . . . . . . . . . . . . . . Largest Inventory Capacity 25 | 8 15 20 20 20 20 20 25 25 25 25 25 25 25 25 25 25 25 25 25 25 25 25 25 25 25 25 Average Capacity 22 | 7 9 18 20 20 20 20 21 25 25 25 25 25 25 25 25 25 25 25 25 25 25 25 25 25 25 25 Most Carried 25 | 8 15 20 20 20 20 20 25 25 25 25 25 25 25 25 25 25 25 25 25 25 25 25 25 25 25 25 Average Carried 22 | 4 9 18 19 19 19 19 20 25 24 24 24 24 24 24 24 23 23 24 25 24 24 24 24 24 24 24 Final Capacity 25 | 8 15 20 20 20 20 20 25 25 25 25 25 25 25 25 25 25 25 25 25 25 25 25 25 25 25 25 Final Carried 25 | 8 15 20 20 20 20 20 25 25 25 25 25 25 25 25 25 23 25 25 25 25 25 22 25 25 22 20 Class Distribution -------------------- 40% | Scavenger-Gunner 19% | Mutant 15% | Scavenger-Tank 9% | Commander-Mutant 5% | Gunner 4% | Hacker-Mutant Dominant Class ---------------- Mutant | -10/Materials Mutant | -10/Subcaves Commander-Mutant | -9/Recycling Commander-Mutant | -9/Scraptown Gunner | -6/Factory Scavenger-Tank | -6/Extension Scavenger-Tank | -6/Cetus Scavenger-Tank | -6/Archives Scavenger-Tank | -6/Hub_04(d) Scavenger-Tank | -5/Factory Scavenger-Gunner | -5/Upper Caves Scavenger-Gunner | -5/Upper Caves Scavenger-Gunner | -5/Zhirov Scavenger-Gunner | -4/Proximity Caves Scavenger-Gunner | -4/Factory Scavenger-Gunner | -4/Waste Scavenger-Gunner | -4/Factory Scavenger-Gunner | -4/Upper Caves Scavenger-Gunner | -4/Upper Caves Scavenger-Gunner | -4/Warlord Gunner | -3/Proximity Caves Scavenger-Gunner | -3/Research Scavenger-Gunner | -3/Quarantine Scavenger-Gunner | -2/Research Hacker-Mutant | -2/Testing Mutant | -2/Section 7 Resources | -11 -10 -10 -9 -9 -6 -6 -6 -6 -6 -5 -5 -5 -5 -4 -4 -4 -4 -4 -4 -4 -3 -3 -3 -2 -2 -2 ----------- Run | Yrd Mat Sub Rec Scr Fac Ext Cet Arc Hub Fac Upp Upp Zhi Pro Fac Was Fac Upp Upp War Pro Res Qua Res Tes Sec Matter Collected 15664 | 226 399 315 90 240 638 317 263 . 1005 661 185 366 250 138 484 . 314 342 111 226 410 1208 1948 1771 1585 2172 Remotely 3906 | . . . . . . . . . . . . . . . 173 . . . . . 92 556 1011 807 580 687 Salvage Created 13339 | 31 437 274 478 . 1650 630 320 39 2149 931 138 120 . 60 372 . 218 . . . 223 431 1149 972 1041 1676 Parts 642 | 5 26 11 17 . 63 18 20 2 106 55 11 5 . 4 24 . 6 . . . 12 13 46 54 41 103 Haulers Intercepted 6 | . 1 . . . 2 . . . 3 . . . . . . . . . . . . . . . . . Recyclers Shooed 6 | . . . 1 . 1 1 . . . . . . . . . . . . . . . . . 1 2 . Parts Field Recycled . | . . . . . . . . . . . . . . . . . . . . . . . . . . . Retrieved Matter . | . . . . . . . . . . . . . . . . . . . . . . . . . . . Parts Self-Destructed 56 | . . 8 . . . . . . . . 12 10 . 5 . . . 6 . . 15 . . . . . Prevented 40 | . . . . . . . . . . . . 5 . 5 . . . 17 8 . 5 . . . . . Kills | -11 -10 -10 -9 -9 -6 -6 -6 -6 -6 -5 -5 -5 -5 -4 -4 -4 -4 -4 -4 -4 -3 -3 -3 -2 -2 -2 ------- Run | Yrd Mat Sub Rec Scr Fac Ext Cet Arc Hub Fac Upp Upp Zhi Pro Fac Was Fac Upp Upp War Pro Res Qua Res Tes Sec Combat Hostiles Destroyed 227 | . 12 10 6 . 23 8 4 . 27 15 5 1 . 1 6 . 1 . . . 7 9 22 26 13 31 Melee 23 | . . . 1 . . . . . . . . . . . . . . . . . . . . . 4 18 Guns 89 | . 12 . . . 11 7 3 . 27 15 5 1 . 1 6 . 1 . . . . . . . . . Cannons 87 | . . 4 5 . 6 . . . . . . . . . . . . . . . 7 9 22 14 7 13 AOE 18 | . . 3 . . 1 . . . . . . . . . . . . . . . . . . 12 2 . Classes Destroyed 23 | 1 4 4 2 . 2 1 . . 2 2 . 1 . . . . . . . . . 2 . 1 . 1 Worker 13 | . 2 . . . 1 . . . 5 1 . . . . . . . . . . . . 1 1 2 . Builder 4 | . . . . . . . . . . 2 . . . . . . . . . . . . 1 . . 1 Tunneler 3 | 2 . . . . 1 . . . . . . . . . . . . . . . . . . . . . Hauler 6 | . 1 . . . 2 . . . 3 . . . . . . . . . . . . . . . . . Recycler 17 | . . . 3 . . 1 . . 2 . . . . . . . 1 . . . . 1 2 2 5 . Mechanic 1 | . . . . . . . . . . 1 . . . . . . . . . . . . . . . . Operator 4 | . . . . . . . . . 1 . . . . . 1 . . . . . . . 2 . . . Turret 1 | . . 1 . . . . . . . . . . . . . . . . . . . . . . . . Watcher 2 | . . . . . . . . . 1 . . . . . . . . . . . . . . . . 1 Swarmer 56 | . 6 6 1 . . 1 . . 6 4 5 . . . . . . . . . 6 . . 17 . 4 Grunt 56 | . 6 1 2 . 12 3 . . 11 7 . . . . . . . . . . 1 1 7 . 1 4 Brawler 2 | . . . . . 2 . . . . . . . . . . . . . . . . . . . . . Duelist 1 | . . . . . . . . . . . . . . . . . . . . . . . . . . 1 Sentry 15 | . . 1 2 . . 3 . . 4 1 . . . . . . . . . . . . . 1 . 3 Demolisher 1 | . . . . . . . . . . . . . . . . . . . . . . 1 . . . . Hunter 22 | . . . . . 6 . . . 3 1 . 1 . . . . . . . . . 4 2 3 2 . Programmer 62 | . . . 1 . 3 . . . 3 2 . . . 1 6 . 1 . . . . 1 13 4 10 17 Behemoth 2 | . . . . . . 1 . . . . . . . . . . . . . . . 1 . . . . Cetus Guard 4 | . . . . . . . 4 . . . . . . . . . . . . . . . . . . . S7 Guard 2 | . . . . . . . . . . . . . . . . . . . . . . . . . . 2 Striker 1 | . . . . . . . . . . . . . . . . . . . . . . 1 . . . . Artisan 1 | . . 1 . . . . . . . . . . . . . . . . . . . . . . . . Subdweller 2 | . . 2 . . . . . . . . . . . . . . . . . . . . . . . . Scrapoid 2 | . . . . . . . . . . . . . . . . . . . . . . . . 2 . . Samaritan 1 | . . . . . . . . . . . . 1 . . . . . . . . . . . . . . Best Kill Streak 9 | 2 3 5 3 . 8 2 3 . 9 6 4 1 . 1 2 . 1 . . . 4 6 5 6 4 6 Combat Bots Only 8 | . 3 5 3 . 8 2 3 . 6 5 4 1 . 1 2 . 1 . . . 4 6 3 6 3 5 Max Kills in Single Turn 4 | 1 2 2 1 . 2 1 1 . 2 2 3 1 . 1 1 . 1 . . . 1 2 2 4 1 2 Gunslinging 1 | . 1 . . . 1 . . . 1 1 1 . . . . . . . . . . . . . . . Exploded 4 | . . 2 . . 1 . . . . . . . . . . . . . . . . . . 4 1 . Melee 1 | . . . 1 . . . . . . . . . . . . . . . . . . . . . 1 1 Uniques/NPCs Destroyed . | . . . . . . . . . . . . . . . . . . . . . . . . . . . Combat | -11 -10 -10 -9 -9 -6 -6 -6 -6 -6 -5 -5 -5 -5 -4 -4 -4 -4 -4 -4 -4 -3 -3 -3 -2 -2 -2 -------- Run | Yrd Mat Sub Rec Scr Fac Ext Cet Arc Hub Fac Upp Upp Zhi Pro Fac Was Fac Upp Upp War Pro Res Qua Res Tes Sec Hostile Shots Fired 1742 | . 45 55 22 . 101 100 18 . 155 78 24 6 . 2 13 12 . . 4 12 16 202 143 123 144 467 Missed 423 | . 7 20 7 . 26 40 4 . 41 8 4 1 . . 2 . . . 1 5 5 55 32 18 29 118 Damage Taken 20259 | . 450 488 173 . 1286 447 399 196 1701 990 289 92 . 37 165 408 . 19 32 101 195 2897 1176 1212 1833 5673 Core 1962 | . 32 72 34 . 44 24 56 31 53 38 . . . . 31 45 . . 7 . . 122 51 226 386 710 Absorbed by Shields 7781 | . . . 3 . 105 275 170 50 . 96 . . . . 48 116 . 6 9 30 60 483 1107 1138 1164 2921 Reduced by Siege Mode 1100 | . . . . . . . . . 99 104 . . . . 4 . . . . . 5 171 104 115 69 429 Redirected to Core 565 | . . . . . . . . . . . . . . . . . . . . . . . . 176 350 39 Ignored by Resistances 843 | . . . . . 37 59 . . . . . . . . . . . . . . . . . 36 143 568 Regen/Repaired (Parts) 4557 | . . . . . 199 . . . . 1337 . . . . 246 . . . . 4 . . 1112 . 338 1321 Core Remaining (%) 82 | 100 . . . 44 . . . . 75 . . . . 96 . . . . . . 92 . 86 . . . Volleys Fired 634 | 2 45 54 23 . 60 26 9 4 87 34 21 3 . 2 19 . 6 . 1 5 9 20 66 57 37 44 Largest 5 | 2 2 2 2 . 3 3 3 3 3 5 5 5 . 4 5 . 3 . 1 2 3 3 3 2 2 2 Hottest 310 | 60 100 136 136 . 250 230 225 150 310 305 306 306 . 242 307 . 116 . 81 122 183 265 227 160 160 160 Shots Fired 1333 | 4 87 82 41 . 143 63 28 12 202 97 38 11 . 7 59 1 16 2 2 10 30 45 135 90 52 76 Gun 691 | 4 86 1 . . 70 60 28 12 198 97 38 11 . 7 59 1 16 2 1 . . . . . . . Cannon 624 | . . 76 41 . 73 3 . . 3 . . . . . . . . . 1 10 30 45 135 86 45 76 Launcher 16 | . . 5 . . . . . . . . . . . . . . . . . . . . . 4 7 . Special 2 | . 1 . . . . . . . 1 . . . . . . . . . . . . . . . . . Kinetic 675 | 2 42 1 . . . 12 13 8 107 49 2 2 . 2 29 . 8 2 1 10 30 29 119 86 45 76 Thermal 565 | 2 41 76 41 . 102 51 15 4 95 48 36 9 . 5 30 1 8 . 1 . . . . . . . Explosive 16 | . . 5 . . . . . . . . . . . . . . . . . . . . . 4 7 . Electromagnetic 45 | . 4 . . . 41 . . . . . . . . . . . . . . . . . . . . . Entropic 32 | . . . . . . . . . . . . . . . . . . . . . . 16 16 . . . Robot Hit Streak 39 | 2 9 23 6 . 14 21 8 9 12 18 3 6 . 2 13 . 14 . 1 7 3 9 23 14 34 39 Robot Miss Streak 5 | . 2 2 4 . 3 4 2 1 3 5 5 . . 3 2 . 2 3 . 3 4 2 2 1 2 1 Penetration Max 1 | . . . . . . 1 1 . 1 1 . . . . . . . . . . . 1 1 . . . Secondary Targets 21 | . 2 . . . 5 3 . . 5 4 2 . . . . . . . . . . . . . . . Max Gunslinging Chain 2 | . 1 . . . 2 1 . . 1 1 2 . . . . . . . . . . . . . . . Shots Hit Robots 845 | 2 55 45 27 . 96 38 21 9 113 57 9 5 . 3 31 . 8 . 1 7 11 28 72 61 53 93 Core Hits 406 | 2 22 10 10 . 47 25 12 3 64 29 5 3 . 1 10 . 4 1 . 3 7 13 38 39 19 39 Critical Kills 23 | . . 3 . . 2 . 2 . 6 4 3 1 . . . . 1 . . . . . 1 . . . Critical Parts Destroyed 22 | . . . . . . . . . 7 5 3 1 . . 5 . 1 . . . . . . . . . Critical Strikes 97 | . 1 3 . . 5 4 5 . 14 9 6 2 . . 5 . 2 . . 1 . 7 13 4 4 12 Burn 6 | . 1 . . . 1 3 1 . . . . . . . . . . . . . . . . . . . Meltdown 5 | . . 3 . . 2 . . . . . . . . . . . . . . . . . . . . . Destroy 44 | . . . . . . 1 4 . 14 9 6 2 . . 5 . 2 . . . . . 1 . . . Blast 25 | . . . . . . . . . . . . . . . . . . . . 1 . 3 6 4 2 9 Corrupt 2 | . . . . . 2 . . . . . . . . . . . . . . . . . . . . . Sever 5 | . . . . . . . . . . . . . . . . . . . . . . . . . 2 3 Sunder 10 | . . . . . . . . . . . . . . . . . . . . . . 4 6 . . . Melee Attacks 121 | . . 1 1 . . . . . . . . . . . . . . . . . . . . . 36 83 Impact . | . . . . . . . . . . . . . . . . . . . . . . . . . . . Slashing 121 | . . 1 1 . . . . . . . . . . . . . . . . . . . . . 36 83 Piercing . | . . . . . . . . . . . . . . . . . . . . . . . . . . . Sneak Attacks 8 | . . 1 . . . . . . . . . . . . . . . . . . . . . . 7 . Combat Hostiles . | . . . . . . . . . . . . . . . . . . . . . . . . . . . Follow-up Attacks . | . . . . . . . . . . . . . . . . . . . . . . . . . . . Damage Inflicted 37579 | 21 728 1313 599 . 2806 1100 632 259 3839 1878 247 123 . 127 1067 . 215 20 55 312 331 1763 4113 4715 4914 6402 Guns 11671 | 21 728 11 . . 1404 1100 632 259 3839 1878 247 123 . 127 1067 . 215 20 . . . . . . . . Cannons 17846 | . . 934 572 . 1180 . . . . . . . . . . . . . 55 312 331 1763 4113 3491 2049 3046 Explosions 2478 | . . 306 . . 222 . . . . . . . . . . . . . . . . . . 1224 726 . Melee 5584 | . . 62 27 . . . . . . . . . . . . . . . . . . . . . 2139 3356 Ramming . | . . . . . . . . . . . . . . . . . . . . . . . . . . . Kinetic 17693 | . 318 11 . . . 182 325 164 2147 1156 30 . . 73 552 . 72 20 55 312 331 655 2704 3491 2049 3046 Thermal 8615 | 21 361 934 572 . 1941 918 307 95 1692 722 217 123 . 54 515 . 143 . . . . . . . . . Explosive 2256 | . . 306 . . . . . . . . . . . . . . . . . . . . . 1224 726 . Electromagnetic 914 | . 49 . . . 865 . . . . . . . . . . . . . . . . . . . . . Impact . | . . . . . . . . . . . . . . . . . . . . . . . . . . . Slashing 5584 | . . 62 27 . . . . . . . . . . . . . . . . . . . . . 2139 3356 Piercing . | . . . . . . . . . . . . . . . . . . . . . . . . . . . Entropic 2517 | . . . . . . . . . . . . . . . . . . . . . . 1108 1409 . . . Highest Corruption 45 | . . . . . 2 4 6 6 13 3 3 . . . 2 27 27 27 27 27 8 1 24 1 10 45 Average Corruption 9 | . . . . . 1 2 5 6 10 2 2 . . . 2 16 27 27 27 17 8 1 13 1 4 10 Corruption Purged 3 | . . . . . . . . . . . 3 . . . . . . . . . . . . . . . Corruption Blocked . | . . . . . . . . . . . . . . . . . . . . . . . . . . . Effects 509 | . . . . . 18 14 16 3 75 9 17 . . . . 16 47 44 34 3 41 5 74 2 30 61 Message Errors 110 | . . . . . 3 5 5 . 17 4 4 . . . . 2 7 8 7 1 8 . 15 . 11 13 Matter Fused 117 | . . . . . 1 4 2 1 19 . 3 . . . . 4 14 13 10 . 11 2 14 . 6 13 Heat Flow Errors 66 | . . . . . 3 1 2 . 7 3 3 . . . . 2 4 5 5 . 8 . 6 . 6 11 Energy Discharges 51 | . . . . . 3 . 1 . 6 2 2 . . . . . 5 6 3 . 5 1 12 1 3 1 Parts Rejected 10 | . . . . . . 1 . 1 1 . . . . . . . 1 . . . 2 . 2 . 1 1 Parts Fused 9 | . . . . . . 1 . 1 2 . . . . . . 1 . 2 . . . . 1 . . 1 Data Loss (minor) 59 | . . . . . 7 . 2 . 9 . 2 . . . . 3 4 4 5 2 4 . 10 1 . 6 Data Loss (major) 27 | . . . . . . 1 1 . 3 . . . . . . . 5 4 3 . . 1 2 . 2 5 Misfires 27 | . . . . . . . 1 . 3 . 1 . . . . 1 7 2 1 . 3 1 2 . 1 4 Alerts 14 | . . . . . 1 . 2 . 2 . . . . . . . . . . . . . 6 . . 3 Misdirections 6 | . . . . . . . . . . . . . . . . 3 . . . . . . . . . 3 Weapon Failures 13 | . . . . . . 1 . . 6 . 2 . . . . . . . . . . . 4 . . . Overload Shots 4 | . . . . . . . . . 4 . . . . . . . . . . . . . . . . . Overflow Damage 2750 | . . 66 35 . 34 . . . . . . . . . . . . . 32 . 9 202 390 396 1056 530 Projectiles 1826 | . . 41 35 . 3 . . . . . . . . . . . . . 32 . 9 202 390 374 509 231 Explosions 64 | . . 3 . . 31 . . . . . . . . . . . . . . . . . . 22 8 . Melee 860 | . . 22 . . . . . . . . . . . . . . . . . . . . . . 539 299 Knockbacks 97 | . . . . . . . . . . . . . . . . . . . . . 2 9 31 20 19 16 Impact . | . . . . . . . . . . . . . . . . . . . . . . . . . . . Kinetic 86 | . . . . . . . . . . . . . . . . . . . . . 2 8 26 20 18 12 Secondary 11 | . . . . . . . . . . . . . . . . . . . . . . 1 5 . 1 4 Self-Inflicted Damage 89 | . . 23 . . 66 . . . . . . . . . . . . . . . . . . . . . Shots 2 | . . 1 . . 1 . . . . . . . . . . . . . . . . . . . . . Rammed . | . . . . . . . . . . . . . . . . . . . . . . . . . . . Targets Rammed . | . . . . . . . . . . . . . . . . . . . . . . . . . . . Kicked . | . . . . . . . . . . . . . . . . . . . . . . . . . . . Crushed . | . . . . . . . . . . . . . . . . . . . . . . . . . . . Highest Temperature 453 | . 249 60 317 . 396 399 139 48 338 327 283 147 . 302 303 234 215 276 207 108 423 198 217 256 453 269 Average Temperature 99 | . 66 24 92 . 148 129 44 22 80 100 107 67 . 152 106 87 82 99 85 48 95 115 27 93 120 87 Received Heat Transfer 2351 | . 231 78 73 . 453 156 44 . 423 161 . . . . . . . . . 22 . . 110 16 44 540 Effects 16 | . . . . . 12 . . . 1 . . . . . . . . . . . . . . . 1 2 Shutdowns 6 | . . . . . 4 . . . 1 . . . . . . . . . . . . . . . 1 . Energy Bleed 3 | . . . . . 3 . . . . . . . . . . . . . . . . . . . . . Interference 6 | . . . . . 4 . . . . . . . . . . . . . . . . . . . . 2 Matter Decay 1 | . . . . . 1 . . . . . . . . . . . . . . . . . . . . . Siege Activations 70 | . . . . . . . . . 12 4 2 1 . . 2 . 1 . . . 3 3 11 11 6 14 Total Turns 1176 | . . . . . . . . . 180 95 29 8 . . 35 . 63 . . . 84 34 136 198 133 181 Longest Duration 75 | . . . . . . . . . 36 37 22 8 . . 22 . 63 . . . 51 27 26 75 27 24 Robots Corrupted 3 | . . . . . 2 . . . . . . . . . . . . . . . . . 1 . . . Combat Hostiles 2 | . . . . . 2 . . . . . . . . . . . . . . . . . . . . . Parts Fried 4 | . . . . . 2 . . . . . . . . . . . . . . . . . 1 1 . . Impact Corruptions 3 | . . . . . . . . . . . . . . . . . . . . . . . 1 . 1 1 Robots Melted 9 | . . 3 . . 4 1 1 . . . . . . . . . . . . . . . . . . . Combat Hostiles 8 | . . 3 . . 3 1 1 . . . . . . . . . . . . . . . . . . . Parts Melted 52 | . . 3 3 . 21 15 4 . 2 1 . 1 . . 2 . . . . . . . . . . . Heat Transferred 14591 | 50 952 1628 1008 . 3303 2255 768 111 2185 888 333 185 . 74 629 . 222 . . . . . . . . . Parts Sabotaged . | . . . . . . . . . . . . . . . . . . . . . . . . . . . Parts Stolen . | . . . . . . . . . . . . . . . . . . . . . . . . . . . Parts Stripped . | . . . . . . . . . . . . . . . . . . . . . . . . . . . Power Chain Reactions . | . . . . . . . . . . . . . . . . . . . . . . . . . . . Alert | -11 -10 -10 -9 -9 -6 -6 -6 -6 -6 -5 -5 -5 -5 -4 -4 -4 -4 -4 -4 -4 -3 -3 -3 -2 -2 -2 ------- Run | Yrd Mat Sub Rec Scr Fac Ext Cet Arc Hub Fac Upp Upp Zhi Pro Fac Was Fac Upp Upp War Pro Res Qua Res Tes Sec Peak Influence 890 | 10 221 . 158 . 351 586 491 500 634 345 . . . . 248 18 83 . . . . 235 406 890 521 647 Initial 500 | . 6 . 54 . . 149 266 153 156 282 . . . . . 18 . . . . . . 132 92 500 267 Average 193 | 2 93 . 50 . 157 332 359 288 259 142 . . . . 44 12 39 . . . . 52 167 331 324 351 Maximum Alert Level 3 | . 1 . . . 1 2 2 2 2 1 . . . . 1 . . . . . . 1 2 3 2 2 Low Security (%) 56 | 100 95 . 100 . 58 14 . 44 51 74 . . . . 97 100 100 . . . . 93 60 43 4 . Level 1 32 | . 4 . . . 41 48 79 17 24 25 . . . . 2 . . . . . . 6 38 14 80 73 Level 2 10 | . . . . . . 37 20 37 24 . . . . . . . . . . . . . . 32 15 26 Level 3 . | . . . . . . . . . . . . . . . . . . . . . . . . 8 . . Level 4 . | . . . . . . . . . . . . . . . . . . . . . . . . . . . Level 5 . | . . . . . . . . . . . . . . . . . . . . . . . . . . . High Security . | . . . . . . . . . . . . . . . . . . . . . . . . . . . Max Security . | . . . . . . . . . . . . . . . . . . . . . . . . . . . Squads Dispatched 65 | . 1 . . . 12 1 1 . 11 4 . . . . 2 . 3 . . . . 6 5 5 5 9 Investigation 14 | . . . . . 6 . 1 . 1 1 . . . . . . 1 . . . . 3 . 1 . . Extermination 28 | . . . . . 4 . . . 3 1 . . . . 2 . 1 . . . . . 4 2 5 6 Reinforcement 19 | . 1 . . . 2 . . . 7 2 . . . . . . 1 . . . . 3 1 1 . 1 Assault 4 | . . . . . . 1 . . . . . . . . . . . . . . . . . 1 . 2 Garrison . | . . . . . . . . . . . . . . . . . . . . . . . . . . . Intercept . | . . . . . . . . . . . . . . . . . . . . . . . . . . . Searches Triggered . | . . . . . . . . . . . . . . . . . . . . . . . . . . . Construction Impeded 3 | . . . . . . . . . 1 . . . . . . . 1 . . . . . . 1 . . Haulers Reinforced 3 | . . . . . 1 . . . 2 . . . . . . . . . . . . . . . . . Active Scanning Responses . | . . . . . . . . . . . . . . . . . . . . . . . . . . . Cargo Convoy Interrupts . | . . . . . . . . . . . . . . . . . . . . . . . . . . . Stealth | -11 -10 -10 -9 -9 -6 -6 -6 -6 -6 -5 -5 -5 -5 -4 -4 -4 -4 -4 -4 -4 -3 -3 -3 -2 -2 -2 --------- Run | Yrd Mat Sub Rec Scr Fac Ext Cet Arc Hub Fac Upp Upp Zhi Pro Fac Was Fac Upp Upp War Pro Res Qua Res Tes Sec Distress Signals 26 | . 6 . . . 1 3 2 . 3 . . . . . . . 2 . . . . 7 . 1 . 1 Communications Jammed 277 | . . . . . . 13 . . 85 . . . . . . . . . . 32 . 3 14 . . 130 Distress Signals 276 | . . . . . . 13 . . 84 . . . . . . . . . . 32 . 3 14 . . 130 Times Spotted 456 | . 24 21 8 . 37 32 13 2 41 18 13 4 . 5 17 6 4 4 3 16 10 22 32 29 19 76 Peak Tracking Total 15 | . 5 5 3 . 8 5 5 7 5 5 4 3 . 3 4 6 2 2 2 5 3 9 4 5 3 15 Tactical Retreats 35 | . 4 2 . . 3 1 . 1 3 . 9 . . . . . . . . 1 3 1 2 2 1 2 Traps | -11 -10 -10 -9 -9 -6 -6 -6 -6 -6 -5 -5 -5 -5 -4 -4 -4 -4 -4 -4 -4 -3 -3 -3 -2 -2 -2 ------- Run | Yrd Mat Sub Rec Scr Fac Ext Cet Arc Hub Fac Upp Upp Zhi Pro Fac Was Fac Upp Upp War Pro Res Qua Res Tes Sec Traps Triggered 15 | . . 1 . . 2 . . . 2 . . . . . 1 . 1 . . . . 3 1 . . 4 Indirectly . | . . . . . . . . . . . . . . . . . . . . . . . . . . . Trap Hack Attempts . | . . . . . . . . . . . . . . . . . . . . . . . . . . . Triggered . | . . . . . . . . . . . . . . . . . . . . . . . . . . . Disarmed . | . . . . . . . . . . . . . . . . . . . . . . . . . . . Reprogrammed 6 | . . . . . . 6 . . . . . . . . . . . . . . . . . . . . Reused . | . . . . . . . . . . . . . . . . . . . . . . . . . . . Traps Extracted . | . . . . . . . . . . . . . . . . . . . . . . . . . . . Installed . | . . . . . . . . . . . . . . . . . . . . . . . . . . . Triggered 12 | . . . . . . . . . . . . . . 1 . . . . . 11 . . . . . . Machines | -11 -10 -10 -9 -9 -6 -6 -6 -6 -6 -5 -5 -5 -5 -4 -4 -4 -4 -4 -4 -4 -3 -3 -3 -2 -2 -2 ---------- Run | Yrd Mat Sub Rec Scr Fac Ext Cet Arc Hub Fac Upp Upp Zhi Pro Fac Was Fac Upp Upp War Pro Res Qua Res Tes Sec Machines Disabled 59 | . . 3 . . 5 3 1 2 9 1 . . . . 5 . 2 . 1 2 . 2 7 2 4 10 Max in Single Turn 2 | . . 1 . . 2 1 1 1 2 1 . . . . 1 . . . 1 1 . 1 1 . 1 1 Garrison Access 6 | . . . . . . . . . 1 1 . . . . . . 1 . . . . . 1 1 1 . Network Hub 2 | . . . . . . . . . 2 . . . . . . . . . . . . . . . . . Machines Repaired 2 | . . . . . . . . . . . . . . . . . . . . . . . 1 . . 1 Machines Dismantled 7 | . . . . . . 2 . . 2 . . . . . . . . . . 1 . 2 . . . . Machines Sabotaged . | . . . . . . . . . . . . . . . . . . . . . . . . . . . Overloaded Fab Kills . | . . . . . . . . . . . . . . . . . . . . . . . . . . . Hacking | -11 -10 -10 -9 -9 -6 -6 -6 -6 -6 -5 -5 -5 -5 -4 -4 -4 -4 -4 -4 -4 -3 -3 -3 -2 -2 -2 --------- Run | Yrd Mat Sub Rec Scr Fac Ext Cet Arc Hub Fac Upp Upp Zhi Pro Fac Was Fac Upp Upp War Pro Res Qua Res Tes Sec Machines Accessed 141 | . 7 2 9 7 14 16 2 1 9 13 . 1 5 . 5 . 6 1 . 2 . 6 14 6 8 7 Terminals 92 | . 6 . 6 . 8 15 2 . 8 8 . 1 . . 3 . 3 1 . . . 4 11 3 7 6 Fabricators 3 | . . . . . 1 . . . . . . . . . 1 . 1 . . . . . . . . . Repair Stations 9 | . . . . . 3 1 . . . 2 . . . . 1 . . . . . . . 2 . . . Recycling Units 9 | . 1 . 2 . 2 . . . . 1 . . . . . . 1 . . . . 1 . 1 . . Scanalyzers 2 | . . . . . . . . . . 1 . . . . . . . . . . . . . 1 . . Garrison Access 8 | . . . . . . . . . 1 1 . . . . . . 1 . . . . 1 1 1 1 1 Total Hacks 504 | . 28 4 21 36 31 33 5 25 19 86 . 1 18 . 28 . 15 1 . 3 . 13 63 23 23 28 Successful 301 | . 14 4 13 36 19 18 . 25 7 45 . 1 18 . 18 . 7 1 . 3 . 4 30 15 13 10 Failed 203 | . 14 . 8 . 12 15 5 . 12 41 . . . . 10 . 8 . . . . 9 33 8 10 18 Catastrophic 41 | . 2 . . . 4 2 1 . 2 4 . . . . 3 . 3 . . . . 5 5 3 2 5 Database Lockouts . | . . . . . . . . . . . . . . . . . . . . . . . . . . . Manual 143 | . 13 . 6 . 9 11 1 . 10 21 . . . . 15 . 7 . . . . 4 21 9 5 11 Terminals 338 | . 24 . 16 . 18 32 5 . 17 64 . 1 . . 25 . 11 1 . . . 10 51 14 22 27 Fabricators 4 | . . . . . 1 . . . . . . . . . 1 . 2 . . . . . . . . . Repair Stations 33 | . . . . . 10 1 . . . 12 . . . . 2 . . . . . . . 8 . . . Recycling Units 16 | . 4 . 4 . 2 . . . . 1 . . . . . . 1 . . . . 1 . 3 . . Scanalyzers 10 | . . . . . . . . . . 6 . . . . . . . . . . . . . 4 . . Garrison Access 16 | . . . . . . . . . 2 3 . . . . . . 1 . . . . 2 4 2 1 1 Terminal Hacks 217 | . 7 4 9 36 5 14 . 25 4 28 . 1 18 . 12 . 3 1 . 3 . 3 22 5 9 8 Record 77 | . . 3 1 36 1 . . 25 . . . 1 6 . . . . 1 . 2 . . 1 . . . Part Schematic 5 | . . . . . . . . . . . . . 4 . . . . . . . . . 1 . . . Robot Analysis 9 | . 1 . . . . . . . . 2 . . 4 . . . 2 . . . . . . . . . Prototype ID Bank 12 | . . . 1 . . . . . . 1 . . 4 . . . . . . . . 1 1 1 2 1 Open Door 10 | . . . . . . 8 . . . . . . . . . . . . . 1 . . 1 . . . Level Access Points 1 | . . . . . . . . . . . . . . . . . . . . . . . 1 . . . Branch Access Points 6 | . . . . . 1 . . . . 1 . . . . 1 . 1 . . . . . 1 1 . . Emergency Access Points 8 | . . . 1 . . . . . . 2 . . . . . . . . . . . 1 1 . 2 1 Machine Index 2 | . . . . . . . . . . . . . . . . . . . . . . . 1 1 . . Terminal Index 4 | . . . . . . . . . 1 1 . . . . 1 . . . . . . . 1 . . . Recycling Unit Index 3 | . . . . . . . . . . 1 . . . . 1 . . . . . . 1 . . . . Garrison Index 2 | . . . . . . . . . . 1 . . . . 1 . . . . . . . . . . . Alert Level 7 | . . . . . 1 1 . . . 2 . . . . 1 . . . . . . . 1 1 . . Unreport Threat 17 | . 1 . . . 1 1 . . 2 3 . . . . 1 . . . . . . . 5 . 1 2 Locate Traps 16 | . 2 . . . . 1 . . . 4 . . . . 2 . . . . . . . 3 1 2 1 Reprogram Traps 2 | . . . . . . 2 . . . . . . . . . . . . . . . . . . . . Dispatch Records 1 | . . . . . . . . . . 1 . . . . . . . . . . . . . . . . Security Status 1 | . . . . . . . . . . . . . . . . . . . . . . . 1 . . . Surveillance Status 1 | . . . . . . . . . . . . . . . . . . . . . . . 1 . . . Patrol Status 1 | . . . . . . . . . . 1 . . . . . . . . . . . . . . . . Extermination Status 1 | . . . . . . . . . . . . . . . 1 . . . . . . . . . . . Recall Investigation 1 | . . . . . 1 . . . . . . . . . . . . . . . . . . . . . Recall Reinforcements 1 | . . . . . . . . . . 1 . . . . . . . . . . . . . . . . Hauler Manifests 3 | . . . 1 . . . . . . 1 . . . . . . . . . . . . . . . 1 Registered Components 2 | . . . . . . . . . . 1 . . . . 1 . . . . . . . . . . . Zone Layout 23 | . 3 . 5 . . 1 . . 1 5 . . . . 2 . . . . . . . 2 . 2 2 Derelict Proto ID Bank 1 | . . 1 . . . . . . . . . . . . . . . . . . . . . . . . Fabricator Hacks 3 | . . . . . 1 . . . . . . . . . 1 . 1 . . . . . . . . . Network Status 3 | . . . . . 1 . . . . . . . . . 1 . 1 . . . . . . . . . Repair Station Hacks 22 | . . . . . 8 . . . . 8 . . . . 2 . . . . . . . 4 . . . Scan Component 12 | . . . . . 5 . . . . 4 . . . . 1 . . . . . . . 2 . . . Repair 10 | . . . . . 3 . . . . 4 . . . . 1 . . . . . . . 2 . . . Recycling Unit Hacks 7 | . 2 . 3 . . . . . . . . . . . . . . . . . . . . 2 . . Process 2 | . 1 . . . . . . . . . . . . . . . . . . . . . . 1 . . Report Inventory 1 | . . . 1 . . . . . . . . . . . . . . . . . . . . . . . Retrieve Matter 2 | . 1 . . . . . . . . . . . . . . . . . . . . . . 1 . . Retrieve Components 2 | . . . 2 . . . . . . . . . . . . . . . . . . . . . . . Scanalyzer 6 | . . . . . . . . . . 2 . . . . . . . . . . . . . 4 . . Insert Component 5 | . . . . . . . . . . 1 . . . . . . . . . . . . . 4 . . Analyze 1 | . . . . . . . . . . 1 . . . . . . . . . . . . . . . . Garrison Access Hacks 6 | . . . . . . . . . 1 1 . . . . . . 1 . . . . . 1 1 1 . Seal Access 6 | . . . . . . . . . 1 1 . . . . . . 1 . . . . . 1 1 1 . Unauthorized Hacks 40 | . 5 . 1 . 5 4 . . 2 6 . . . . 3 . 2 . . . . 1 3 3 3 2 Terminals 34 | . 5 . 1 . 3 4 . . 2 5 . . . . 3 . 1 . . . . . 3 2 3 2 Track 6 | . 1 . . . . 1 . . . 1 . . . . . . . . . . . . . . 2 1 Assimilate 1 | . . . . . . . . . . 1 . . . . . . . . . . . . . . . . Botnet 27 | . 4 . 1 . 3 3 . . 2 3 . . . . 3 . 1 . . . . . 3 2 1 1 Fabricators . | . . . . . . . . . . . . . . . . . . . . . . . . . . . Repair Stations 6 | . . . . . 2 . . . . 1 . . . . . . 1 . . . . 1 . 1 . . Recycling Units . | . . . . . . . . . . . . . . . . . . . . . . . . . . . Fedlink 1 | . . . . . . . . . . 1 . . . . . . . . . . . . . . . . Scrapoids 5 | . . . . . 2 . . . . . . . . . . . 1 . . . . 1 . 1 . . Scanalyzers . | . . . . . . . . . . . . . . . . . . . . . . . . . . . Garrison Access . | . . . . . . . . . . . . . . . . . . . . . . . . . . . Data Cores Recovered 2 | . . . . . . . . . . . . . . . 1 . . . . . . . 1 . . . Used 1 | . . . . . . . . . . . . . . . 1 . . . . . . . . . . . Hacking Detections 96 | . 6 . 7 . 11 12 2 . 8 11 . . . . 4 . 3 . . . . 5 10 3 7 7 Full Trace Events 5 | . . . . . 3 . 1 . 1 . . . . . . . . . . . . . . . . . Feedback Events . | . . . . . . . . . . . . . . . . . . . . . . . . . . . Feedback Blocked . | . . . . . . . . . . . . . . . . . . . . . . . . . . . Robot Schematics Acquired . | . . . . . . . . . . . . . . . . . . . . . . . . . . . Robots Built . | . . . . . . . . . . . . . . . . . . . . . . . . . . . Authchips . | . . . . . . . . . . . . . . . . . . . . . . . . . . . Time . | . . . . . . . . . . . . . . . . . . . . . . . . . . . Total Robot Build Rating . | . . . . . . . . . . . . . . . . . . . . . . . . . . . Part Schematics Acquired 6 | . . . . . . . . . . 1 . . 4 . . . . . . . . . 1 . . . Parts Built . | . . . . . . . . . . . . . . . . . . . . . . . . . . . Authchips . | . . . . . . . . . . . . . . . . . . . . . . . . . . . Time . | . . . . . . . . . . . . . . . . . . . . . . . . . . . Total Part Build Rating . | . . . . . . . . . . . . . . . . . . . . . . . . . . . Parts Repaired 10 | . . . . . 3 . . . . 4 . . . . 1 . . . . . . . 2 . . . Time 614 | . . . . . 96 . . . . 194 . . . . 108 . . . . . . . 216 . . . Parts Recycled . | . . . . . . . . . . . . . . . . . . . . . . . . . . . Recycled Matter 39 | . 10 . . . . . . . . . . . . . . . . . . . . . . 29 . . Retrieved Matter 39 | . 10 . . . . . . . . . . . . . . . . . . . . . . 29 . . Retrieved Components . | . . . . . . . . . . . . . . . . . . . . . . . . . . . Parts Scanalyzed 1 | . . . . . . . . . . 1 . . . . . . . . . . . . . . . . Part Schematics Acquired 1 | . . . . . . . . . . 1 . . . . . . . . . . . . . . . . Parts Damaged . | . . . . . . . . . . . . . . . . . . . . . . . . . . . Bothacking | -11 -10 -10 -9 -9 -6 -6 -6 -6 -6 -5 -5 -5 -5 -4 -4 -4 -4 -4 -4 -4 -3 -3 -3 -2 -2 -2 ------------ Run | Yrd Mat Sub Rec Scr Fac Ext Cet Arc Hub Fac Upp Upp Zhi Pro Fac Was Fac Upp Upp War Pro Res Qua Res Tes Sec Used RIF Installer . | . . . . . . . . . . . . . . . . . . . . . . . . . . . Robots Hacked . | . . . . . . . . . . . . . . . . . . . . . . . . . . . Non-combat . | . . . . . . . . . . . . . . . . . . . . . . . . . . . Combat . | . . . . . . . . . . . . . . . . . . . . . . . . . . . Robot Hacks Applied . | . . . . . . . . . . . . . . . . . . . . . . . . . . . Relay Couplers Released . | . . . . . . . . . . . . . . . . . . . . . . . . . . . Fabnet Peak Effective % . | . . . . . . . . . . . . . . . . . . . . . . . . . . . Robots Rewired 14 | . . . 11 . . 3 . . . . . . . . . . . . . . . . . . . . Allies Hacked . | . . . . . . . . . . . . . . . . . . . . . . . . . . . Hacks Repelled 1 | . . . . . . . . . . . . . . 1 . . . . . . . . . . . . Allies | -11 -10 -10 -9 -9 -6 -6 -6 -6 -6 -5 -5 -5 -5 -4 -4 -4 -4 -4 -4 -4 -3 -3 -3 -2 -2 -2 -------- Run | Yrd Mat Sub Rec Scr Fac Ext Cet Arc Hub Fac Upp Upp Zhi Pro Fac Was Fac Upp Upp War Pro Res Qua Res Tes Sec Total Allies 93 | . . 8 11 . 10 18 5 . . 1 . 8 . 7 . . 5 6 . . 6 3 . 5 . . Largest Group 11 | . . 7 11 9 9 11 11 10 . 1 1 4 4 5 . . 5 6 5 5 4 3 . 5 . . Highest-Rated Group 693 | . . 133 172 130 200 413 693 659 . 26 26 324 324 354 . . 235 418 362 356 324 138 . 323 . . Highest-Rated Ally 159 | . . 19 34 27 31 159 159 159 . 26 26 81 81 81 . . 47 81 81 81 81 46 . 67 . . Total Orders 34 | . . . 2 . 13 . . . . . 4 . . . . . . . . . . 7 . 8 . . STAY 14 | . . . 1 . 7 . . . . . 2 . . . . . . . . . . . . 4 . . FOLLOW 12 | . . . 1 . 5 . . . . . 2 . . . . . . . . . . . . 4 . . PICKUP 1 | . . . . . 1 . . . . . . . . . . . . . . . . . . . . . EXPLORE 4 | . . . . . . . . . . . . . . . . . . . . . . 4 . . . . RETURN 3 | . . . . . . . . . . . . . . . . . . . . . . 3 . . . . Ally Attacks 702 | . . 58 5 . 131 156 91 48 . . . 6 . 30 . . 18 33 19 36 20 18 . 33 . . Total Damage 16335 | . . 785 118 . 1897 3098 1932 1922 . . . 537 . 714 . . 281 1292 506 1136 1033 531 . 553 . . Kills 92 | . . 6 2 . 10 16 9 10 . . . 4 . 4 . . 1 10 3 5 7 1 . 4 . . Allies Corrupted . | . . . . . . . . . . . . . . . . . . . . . . . . . . . Allies Melted . | . . . . . . . . . . . . . . . . . . . . . . . . . . . Intel | -11 -10 -10 -9 -9 -6 -6 -6 -6 -6 -5 -5 -5 -5 -4 -4 -4 -4 -4 -4 -4 -3 -3 -3 -2 -2 -2 ------- Run | Yrd Mat Sub Rec Scr Fac Ext Cet Arc Hub Fac Upp Upp Zhi Pro Fac Was Fac Upp Upp War Pro Res Qua Res Tes Sec Robot Analysis Total 9 | . 1 . . . . . . . . 2 . . 4 . . . 2 . . . . . . . . . Derelict Logs Recovered 16 | . . 3 . 5 . . . . . . 1 3 . 1 . . . 1 2 . . . . . . . Drone Launches 10 | . . . . . . . . . . . . . . . . . . . . . . 10 . . . . Drone Recoveries 7 | . . . . . . . . . . . . . . . . . . . . . . 7 . . . . Decoded 0b10 Intel 54 | . . . . . 38 16 . . . . . . . . . . . . . . . . . . . . Traps 31 | . . . . . 20 11 . . . . . . . . . . . . . . . . . . . . Emergency Access 20 | . . . . . 16 4 . . . . . . . . . . . . . . . . . . . . Exits 3 | . . . . . 2 1 . . . . . . . . . . . . . . . . . . . . Exploration | -11 -10 -10 -9 -9 -6 -6 -6 -6 -6 -5 -5 -5 -5 -4 -4 -4 -4 -4 -4 -4 -3 -3 -3 -2 -2 -2 ------------- Run | Yrd Mat Sub Rec Scr Fac Ext Cet Arc Hub Fac Upp Upp Zhi Pro Fac Was Fac Upp Upp War Pro Res Qua Res Tes Sec Turns Passed 37043 | 90 1551 3726 1047 2489 2279 974 536 89 1993 1932 1993 1479 341 1051 1301 262 902 959 744 1308 1088 1432 2065 1543 1989 1880 Spaces Moved 19749 | 43 725 2191 672 2017 1347 490 258 44 722 934 1128 897 153 573 646 141 415 449 461 755 541 771 929 678 849 920 Core 4 | 4 . . . . . . . . . . . . . . . . . . . . . . . . . . Treads 14139 | 39 725 1070 . . . 258 258 44 722 934 1128 897 153 573 646 141 415 449 461 755 541 771 929 678 849 703 Legs . | . . . . . . . . . . . . . . . . . . . . . . . . . . . Wheels 5389 | . . 1121 672 2017 1347 232 . . . . . . . . . . . . . . . . . . . . Hover . | . . . . . . . . . . . . . . . . . . . . . . . . . . . Flight . | . . . . . . . . . . . . . . . . . . . . . . . . . . . Fastest Speed 50 | 50 160 105 105 120 105 135 160 160 160 160 160 160 160 160 160 160 160 160 160 160 160 160 160 160 160 155 Average Speed 153 | 152 160 149 115 120 122 156 160 160 160 160 160 160 160 160 176 160 194 207 160 160 174 160 165 162 160 158 Slowest Speed 255 | 160 160 240 120 120 150 240 160 160 160 160 160 160 160 160 240 160 240 240 160 160 240 160 255 166 250 238 Overloaded Moves . | . . . . . . . . . . . . . . . . . . . . . . . . . . . Propulsion Burnouts . | . . . . . . . . . . . . . . . . . . . . . . . . . . . Robots Hopped . | . . . . . . . . . . . . . . . . . . . . . . . . . . . Cave-ins Triggered . | . . . . . . . . . . . . . . . . . . . . . . . . . . . Teleports 9 | . . . . . . . . . . . . . . . . . . . . . . . . . 1 8 Microwarps 25 | . . . . . . . . . . . . . . . . . . . . . . . . . . 25 Exploration Rate (%) 62 | 4 93 95 99 93 33 69 75 69 64 29 84 93 61 70 18 81 14 62 67 92 65 35 86 21 84 36 Regions Visited 26 Branch Regions 18 Pre-discovered Areas 5 | . . 1 . . . . . . . . . . 3 1 . . . . . . . . . . . . Known Exits Taken 9 | . . 1 . . 1 . . . 1 1 . . . 1 . . 1 . . . 1 . 1 1 . . Unknown Exits Taken 15 | 1 1 . 1 1 . 1 1 1 . . 1 1 1 . . . . 1 1 1 . 1 . . 1 . Scrap Searched 25 | . . 8 . 10 . . . . . . . 1 . 3 . . . 2 . . 1 . . . . . Spaces Dug 121 | . 1 4 . . 13 3 . . 11 9 9 . . . 5 . . . . . . 4 18 12 18 14 Terrain Destroyed 561 | . 1 22 . . 40 3 3 . 57 36 16 3 . . 20 . 4 2 . 1 23 27 66 95 123 19 Melee 16 | . . . . . . . . . . . . . . . . . . . . . . . . . 8 8 Projectile 326 | . 1 . . . 15 3 3 . 57 36 16 3 . . 20 . 4 2 . 1 23 27 66 24 14 11 AOE 219 | . . 22 . . 25 . . . . . . . . . . . . . . . . . . 71 101 . Terrain Rammed . | . . . . . . . . . . . . . . . . . . . . . . . . . . . Walls Destroyed . | . . . . . . . . . . . . . . . . . . . . . . . . . . . Machines Disabled . | . . . . . . . . . . . . . . . . . . . . . . . . . . . Actions | -11 -10 -10 -9 -9 -6 -6 -6 -6 -6 -5 -5 -5 -5 -4 -4 -4 -4 -4 -4 -4 -3 -3 -3 -2 -2 -2 --------- Run | Yrd Mat Sub Rec Scr Fac Ext Cet Arc Hub Fac Upp Upp Zhi Pro Fac Was Fac Upp Upp War Pro Res Qua Res Tes Sec Total 25047 | 60 1027 2567 902 2100 1854 612 368 53 1363 1299 1283 932 252 701 764 177 500 477 467 829 662 893 1327 1016 1342 1220 Wait 3407 | . 217 260 119 27 315 23 49 5 493 235 118 26 80 119 43 34 63 7 6 21 94 41 222 208 330 252 Move 19532 | 42 724 2190 671 2016 1346 489 257 43 721 933 1127 896 152 572 646 140 414 448 460 754 540 770 928 677 848 728 Hop . | . . . . . . . . . . . . . . . . . . . . . . . . . . . Pick Up 264 | 8 14 27 3 28 29 12 16 . 4 20 . 1 4 1 10 . 6 4 . 5 3 5 25 8 12 19 Fast Attach 90 | 7 2 . . . 11 2 5 1 3 8 5 . 4 . 1 . 1 1 . 7 2 6 4 3 9 8 Attach 90 | . . 5 1 3 11 1 1 . 2 7 . . 1 . 3 1 2 3 . 2 . 6 10 4 11 16 Detach 39 | . 1 . . . 3 . 1 . 2 5 3 . . . 1 . . 1 . 4 . 6 2 2 1 7 Swap 460 | 1 13 10 8 1 41 21 12 . 41 36 5 5 3 3 32 2 6 7 . 9 11 14 47 47 39 46 Drop 265 | . 11 20 5 25 30 14 18 . 3 20 4 1 8 1 9 . 2 6 . 13 3 6 21 10 19 16 Fire 634 | 2 45 54 23 . 60 26 9 4 87 34 21 3 . 2 19 . 6 . 1 5 9 20 66 57 37 44 Melee 121 | . . 1 1 . . . . . . . . . . . . . . . . . . . . . 36 83 Ram . | . . . . . . . . . . . . . . . . . . . . . . . . . . . Kick . | . . . . . . . . . . . . . . . . . . . . . . . . . . . Crush . | . . . . . . . . . . . . . . . . . . . . . . . . . . . Escape Stasis 8 | . . . . . 8 . . . . . . . . . . . . . . . . . . . . . Rewire 80 | . . . 71 . . 7 . . . . . . . 2 . . . . . . . . . . . . Trap . | . . . . . . . . . . . . . . . . . . . . . . . . . . . Miscellaneous 57 | . . . . . . 17 . . 7 1 . . . 1 . . . . . 9 . 19 2 . . 1 Route ------- -11/Scrapyard -10/Materials (discovered 5 exits: [*Mat x3] / [*Min] / *Sub) -10/Subcaves (discovered 3 exits: [*Mat x2] / *Rec) -9/Recycling (discovered 2 exits: [*Fac] / *Scr) -9/Scraptown (discovered 2 exits: *Fac x2) -6/Factory (discovered 6 exits: *Fac x2 / *Low x2 / *Ext x2) -6/Extension (discovered 3 exits: *Fac x2 / *Cet) -6/Cetus (discovered 3 exits: *Fac x2 / *Arc) -6/Archives -6/Hub_04(d) (discovered 3 exits: *Fac x3) -5/Factory (discovered 4 exits: *Fac x2 / *Upp x2) -5/Upper Caves -5/Upper Caves (discovered 2 exits: *Fac / *Zhi) -5/Zhirov -4/Proximity Caves -4/Factory (discovered 2 exits: Upp x2) -4/Waste -4/Factory (discovered 2 exits: *Upp x2) -4/Upper Caves -4/Upper Caves -4/Warlord -3/Proximity Caves -3/Research (discovered 3 exits: *Res / *Arm / *Qua) -3/Quarantine -2/Research (discovered 2 exits: *Tes x2) -2/Testing (discovered 2 exits: [*Acc] / *Sec) -2/Section 7 (discovered 1 exit: [*Acc]) History --------- Turn | Location | Event 27 | -11/Scrapyard | Discovered new exit (range 16) 91 | -11/Scrapyard | Entered Materials 305 | -10/Materials | Build established: Mutant 569 | -10/Materials | Discovered new exit (range 3) 864 | -10/Materials | Discovered new exit (range 8) 879 | -10/Materials | Discovered new exit (range 16) 1296 | -10/Materials | Discovered new exit (range 11) 1638 | -10/Materials | Discovered new exit (range 4) 1642 | -10/Materials | Entered Subcaves 1649 | -10/Subcaves | Identified exit to Recycling 1739 | -10/Subcaves | Curiously followed by a Cobbler waking with a query about "LVR3C" 2029 | -10/Subcaves | Visited Clippyterm 2033 | -10/Subcaves | Learned Research security intel 2411 | -10/Subcaves | Shifting Twisted Machinery released Sub. Beam Cannon 2412 | -10/Subcaves | Discovered new exit (range 8) 2416 | -10/Subcaves | Shifting Twisted Machinery released Sub. Monowheel 2416 | -10/Subcaves | Shifting Twisted Machinery released Sub. Monowheel 2419 | -10/Subcaves | Shifting Twisted Machinery released Riot Gun 2635 | -10/Subcaves | A swath of the cavern ceiling suddenly collapsed 2763 | -10/Subcaves | Learned location of 1 exit from Materials 2781 | -10/Subcaves | Ambushed by angry Subdweller bent on revenge 2943 | -10/Subcaves | Visited triangular shrine 2957 | -10/Subcaves | Found Prototype Device 2975 | -10/Subcaves | Identified V3-11A's Pendant 2980 | -10/Subcaves | Befriended Subdweller 3135 | -10/Subcaves | Learned 2 Materials zone layouts 3204 | -10/Subcaves | Visited 4L-MR0's lab 3259 | -10/Subcaves | Found Gun Armor 3366 | -10/Subcaves | Discovered new exit (range 9) 3370 | -10/Subcaves | Befriended Subdweller 3370 | -10/Subcaves | Befriended Subdweller 3775 | -10/Subcaves | Befriended Subdweller 4165 | -10/Subcaves | Befriended Subdweller 4235 | -10/Subcaves | Befriended Subdweller 4240 | -10/Subcaves | Befriended Subdweller 4503 | -10/Subcaves | Learned location of Zion (-6) 4503 | -10/Subcaves | Met a Zionite searching for "candidates" 4735 | -10/Subcaves | Shifting Twisted Machinery released Sub. Power Source 4741 | -10/Subcaves | Shifting Twisted Machinery released Riot Gun 4893 | -10/Subcaves | A swath of the cavern ceiling suddenly collapsed 5015 | -10/Subcaves | Befriended Subdweller 5318 | -10/Subcaves | Lost 5 allies 5368 | -10/Subcaves | Entered Recycling 5368 | -9/Recycling | Accompanied by 1 ally 5401 | -9/Recycling | Core integrity fell below 50% 5770 | -9/Recycling | Build established: Commander-Mutant 5784 | -9/Recycling | Discovered new exit (range 9) 5986 | -9/Recycling | Scanned before Scraplab entrance 6348 | -9/Recycling | Entered Scraplab 6361 | -9/Recycling | Discovered new exit (range 2) 6415 | -9/Recycling | Entered Scraptown 6415 | -9/Scraptown | Accompanied by 9 allies 6623 | -9/Scraptown | Scanned Subdweller tech in exchange for log data 6625 | -9/Scraptown | Learned location of 2 exits from Proximity Caves 6628 | -9/Scraptown | Learned Research terminal intel 6629 | -9/Scraptown | Learned Factory interactive machine intel 6630 | -9/Scraptown | Learned location of 1 exit from Proximity Caves 6778 | -9/Scraptown | Delivered V3-11A's Pendant to T0-NE2 in exchange for information 7048 | -9/Scraptown | Visited Awakened 7083 | -9/Scraptown | Visited Symbiants 7124 | -9/Scraptown | Visited The Evicted 7239 | -9/Scraptown | Visited Bundlers 7313 | -9/Scraptown | Visited Red Mages 7351 | -9/Scraptown | Visited Cave Peace 7410 | -9/Scraptown | Visited Cyclists 7447 | -9/Scraptown | Visited UFD Registry 7447 | -9/Scraptown | Registered with UFD as "Longcase" 7470 | -9/Scraptown | Entered Cyclist Reading Room 7541 | -9/Scraptown | Discovered new exit (range 5) 7578 | -9/Scraptown | Guru changed UFD alias to "Autogrid" 7841 | -9/Scraptown | Visited Scrapoid Research Area 7875 | -9/Scraptown | Visited Botcube Research 7933 | -9/Scraptown | Delivered Scrap Shield to a Scientist 8045 | -9/Scraptown | Visited Junk Repository 8118 | -9/Scraptown | Found Lrg. Botcube 8157 | -9/Scraptown | Visited Infowarlord's Domain 8238 | -9/Scraptown | Visited Observation Area 8277 | -9/Scraptown | Visited LU-1G1's Boring Crew 8359 | -9/Scraptown | Visited Junk Repository 8422 | -9/Scraptown | Visited Abandonware Association 8434 | -9/Scraptown | Learned abandonware demo "ERRANTS.EXE" 8464 | -9/Scraptown | Visited Scrap Suit Storage 8870 | -9/Scraptown | Discovered new exit (range 5) 8904 | -9/Scraptown | Entered Factory 8904 | -6/Factory | Accompanied by 9 allies 8904 | -6/Factory | Evolved 8 slots: Power x1, Propulsion x2, Utility x4, Weapon x1 8905 | -6/Factory | Loaded intel: 54 interactive machine locations 8954 | -6/Factory | Identified exit to Lower Caves 8954 | -6/Factory | Identified exit to Extension 9108 | -6/Factory | Identified exit to Factory 9146 | -6/Factory | Scrapoid reinforcements arrived 9169 | -6/Factory | Lost 5 allies 9204 | -6/Factory | Build established: Commander-Gunner 9205 | -6/Factory | Repaired Arm. Wheel 9237 | -6/Factory | Repaired Arm. Wheel 9444 | -6/Factory | Repaired Arm. Wheel 9529 | -6/Factory | Spotted B-75 Beast 9720 | -6/Factory | Build established: Gunner 10063 | -6/Factory | Lost 3 parts (1u2w) 10070 | -6/Factory | Destroyed 8 combat bots 10111 | -6/Factory | Scrapoid reinforcements arrived 10419 | -6/Factory | Build established: Commander-Tank 10760 | -6/Factory | Lost 3 allies 10808 | -6/Factory | Build established: Scavenger-Tank 11183 | -6/Factory | Entered Extension 11291 | -6/Extension | Rescued a captive Derelict 11306 | -6/Extension | Rescued a captive Derelict 11307 | -6/Extension | Rescued a captive Derelict 11447 | -6/Extension | Rescued A7 11506 | -6/Extension | Rescued a captive Derelict 11538 | -6/Extension | Rescued a captive Derelict 11539 | -6/Extension | Rescued a captive Derelict 11595 | -6/Extension | Spotted B-75 Beast 11626 | -6/Extension | Allies destroyed B-75 Beast 11639 | -6/Extension | Spotted B-75 Beast 11653 | -6/Extension | Destroyed B-75 Beast 11691 | -6/Extension | Lost 4 allies 11827 | -6/Extension | Rescued a captive Derelict 11828 | -6/Extension | Rescued a captive Derelict 11883 | -6/Extension | First assault squad dispatched 11898 | -6/Extension | Rescued a captive Derelict 11924 | -6/Extension | Rescued a captive Derelict 11932 | -6/Extension | Rescued a captive Derelict 12033 | -6/Extension | Rescued a captive Derelict 12072 | -6/Extension | Rescued a captive Derelict 12076 | -6/Extension | Rescued a captive Derelict 12127 | -6/Extension | Discovered exit to Factory (range 10) 12129 | -6/Extension | Discovered new exit (range 6) 12157 | -6/Extension | Entered Cetus 12157 | -6/Cetus | Accompanied by 11 allies (A7) 12162 | -6/Cetus | Acquired a Cetus Manufacturing Module code from A7 12182 | -6/Cetus | Spotted Cetus Guard 12182 | -6/Cetus | Spotted Cetus Guard 12187 | -6/Cetus | Spotted Cetus Guard 12188 | -6/Cetus | Spotted Cetus Guard 12196 | -6/Cetus | Destroyed Cetus Guard 12202 | -6/Cetus | Allies destroyed Cetus Guard 12209 | -6/Cetus | Allies destroyed Cetus Guard 12213 | -6/Cetus | Allies destroyed Cetus Guard 12244 | -6/Cetus | Lost 4 allies 12323 | -6/Cetus | Discovered exit to Factory (range 15) 12441 | -6/Cetus | Started Cetus Manufacturing Module 12466 | -6/Cetus | Manufactured an Enhanced Grunt 12480 | -6/Cetus | Discovered new exit (range 16) 12491 | -6/Cetus | Manufactured an Enhanced Grunt 12516 | -6/Cetus | Manufactured an Enhanced Grunt 12540 | -6/Cetus | Spotted Cetus Guard 12540 | -6/Cetus | Spotted Cetus Guard 12541 | -6/Cetus | Manufactured an Enhanced Grunt 12542 | -6/Cetus | Spotted Cetus Guard 12542 | -6/Cetus | Spotted Cetus Guard 12553 | -6/Cetus | Destroyed Cetus Guard 12554 | -6/Cetus | Allies destroyed Cetus Guard 12556 | -6/Cetus | Destroyed Cetus Guard 12564 | -6/Cetus | Destroyed Cetus Guard 12566 | -6/Cetus | Manufactured an Enhanced Grunt 12572 | -6/Cetus | Discovered exit to Factory (range 16) 12580 | -6/Cetus | Met Revision 17 12693 | -6/Cetus | Entered Archives 12693 | -6/Archives | Accompanied by 10 allies (A7) 12711 | -6/Archives | Met Zhirov 12717 | -6/Archives | Reinforcements dispatched to Archives 12730 | -6/Archives | Read partially decrypted archive contents 12737 | -6/Archives | Discovered new exit (range 15) 12762 | -6/Archives | Reinforcements dispatched to Archives 12780 | -6/Archives | Lost 4 allies 12782 | -6/Archives | Zhirov detonated Archives 12782 | -6/Archives | Entered Hub_04(d) 12813 | -6/Hub_04(d) | Lost 4 allies 13429 | -6/Hub_04(d) | Discovered exit to Factory (range 13) 13643 | -6/Hub_04(d) | System corruption reached 10% 14261 | -6/Hub_04(d) | Discovered exit to Factory (range 8) 14564 | -6/Hub_04(d) | Discovered exit to Factory (range 6) 14689 | -6/Hub_04(d) | Network Hub disabled 14708 | -6/Hub_04(d) | Spotted Lightning 14759 | -6/Hub_04(d) | Network Hub disabled 14775 | -6/Hub_04(d) | Entered Factory 14775 | -5/Factory | Evolved 2 slots: Utility x2 14845 | -5/Factory | Repaired Centrium Heavy Treads 14887 | -5/Factory | Repaired Quantum Reactor 14984 | -5/Factory | Attached Gun Armor, gained temporary slots: Weapon x2 15979 | -5/Factory | Identified exit to Upper Caves 16126 | -5/Factory | Discovered new exit (range 19) 16196 | -5/Factory | Discovered new exit (range 16) 16407 | -5/Factory | Repaired Centrium Heavy Treads 16457 | -5/Factory | Repaired Adv. KE Penetrator 16707 | -5/Factory | Entered Upper Caves 16707 | -5/Upper Caves | Accompanied by 1 ally 16709 | -5/Upper Caves | UFD Scientist delivered a prototype 16712 | -5/Upper Caves | Found Prototype Protection 16712 | -5/Upper Caves | Identified Enh. Scrap Shield 16791 | -5/Upper Caves | Learned Factory garrison access intel 16813 | -5/Upper Caves | Build established: Scavenger-Gunner 17166 | -5/Upper Caves | Spotted B-75 Beast 18516 | -5/Upper Caves | Discovered new exit (range 5) 18700 | -5/Upper Caves | Entered another Upper Caves area 18791 | -5/Upper Caves | Discovered new exit (range 4) 18805 | -5/Upper Caves | Prototype Device suddenly appears! 18809 | -5/Upper Caves | Found Prototype Device 18946 | -5/Upper Caves | Learned location of 1 exit from Factory 18948 | -5/Upper Caves | Identified Amulet of Y3-NDR 19013 | -5/Upper Caves | Joined by bewildered Wizard 19015 | -5/Upper Caves | Joined by bewildered Wizard 19022 | -5/Upper Caves | Joined by bewildered Wizard 19024 | -5/Upper Caves | Joined by bewildered Wizard 19070 | -5/Upper Caves | Joined by bewildered Wizard 19070 | -5/Upper Caves | Joined by bewildered Wizard 19072 | -5/Upper Caves | Joined by bewildered Wizard 19302 | -5/Upper Caves | Joined by bewildered Wizard 19355 | -5/Upper Caves | Learned Factory security intel 19416 | -5/Upper Caves | Learned Factory machine intel 19877 | -5/Upper Caves | Discovered new exit (range 9) 20091 | -5/Upper Caves | Encountered a Warlord checkpoint 20179 | -5/Upper Caves | Entered Zhirov 20179 | -5/Zhirov | Accompanied by 4 allies 20179 | -5/Zhirov | Discovered new exit (range 3) 20237 | -5/Zhirov | Learned location of Quarantine (-3) 20237 | -5/Zhirov | Learned location of Testing (-2) 20237 | -5/Zhirov | Learned location of Command (-1) 20298 | -5/Zhirov | Found Alien Artifact 20520 | -5/Zhirov | Entered Proximity Caves 20521 | -4/Proximity Caves | Identified exit to Factory 20556 | -4/Proximity Caves | Joined by bewildered Wizard 20557 | -4/Proximity Caves | Joined by bewildered Wizard 20658 | -4/Proximity Caves | Joined by bewildered Wizard 20663 | -4/Proximity Caves | Joined by bewildered Wizard 20957 | -4/Proximity Caves | Joined by bewildered Wizard 20958 | -4/Proximity Caves | Joined by bewildered Wizard 21571 | -4/Proximity Caves | Entered Factory 21571 | -4/Factory | Evolved 2 slots: Utility x2 21572 | -4/Factory | Identified exit to Upper Caves 21574 | -4/Factory | Loaded intel: 259 machine locations 21575 | -4/Factory | Loaded intel: 4 garrison access locations 21995 | -4/Factory | Repaired Centrium Heavy Treads? 22759 | -4/Factory | Found Imp. Powered Armor 22872 | -4/Factory | Sucked down chute 22872 | -4/Factory | Entered Waste 22887 | -4/Waste | EMP discharged 22887 | -4/Waste | System corruption reached 10% 22897 | -4/Waste | Spotted C-40 Crusher 22984 | -4/Waste | Spotted C-40 Crusher 22987 | -4/Waste | EMP discharged 23030 | -4/Waste | Spotted C-40 Crusher 23047 | -4/Waste | Crushed by Compactor (1 part destroyed) 23050 | -4/Waste | Crushed by Compactor (0 parts destroyed, 1 dropped) 23064 | -4/Waste | Spotted C-40 Crusher 23065 | -4/Waste | Spotted C-40 Crusher 23072 | -4/Waste | Crushed by Compactor (1 part destroyed) 23073 | -4/Waste | Spotted C-40 Crusher 23078 | -4/Waste | Crushed by Compactor (1 part destroyed) 23087 | -4/Waste | EMP discharged 23109 | -4/Waste | Lost 3 parts (1p2w) 23114 | -4/Waste | Discovered new exit (range 12) 23134 | -4/Waste | Entered Factory 23953 | -4/Factory | Scrapoids reinforcements arrived? 24036 | -4/Factory | Entered Upper Caves 24036 | -4/Upper Caves | Accompanied by 2 allies 24037 | -4/Upper Caves | Encountered a Warlord checkpoint 24051 | -4/Upper Caves | Lost 3 allies 24100 | -4/Upper Caves | Joined by bewildered Wizard 24102 | -4/Upper Caves | Joined by bewildered Wizard 24195 | -4/Upper Caves | Joined by bewildered Wizard 24195 | -4/Upper Caves | Joined by bewildered Wizard 24316 | -4/Upper Caves | Joined by bewildered Wizard 24322 | -4/Upper Caves | Joined by bewildered Wizard 24341 | -4/Upper Caves | Lost 3 allies 24977 | -4/Upper Caves | Discovered new exit (range 13) 24995 | -4/Upper Caves | Entered another Upper Caves area 24995 | -4/Upper Caves | Accompanied by 5 allies 25547 | -4/Upper Caves | Attacked by a delusional Derelict stockpiling parts 25611 | -4/Upper Caves | Learned Research machine intel 25712 | -4/Upper Caves | Discovered new exit (range 10) 25728 | -4/Upper Caves | Learned Research interactive machine intel 25739 | -4/Upper Caves | Entered Warlord 25739 | -4/Warlord | Accompanied by 5 allies 25793 | -4/Warlord | System corruption cleaned by Quarantine Array 26553 | -4/Warlord | Visited the Vortex Lab 26564 | -4/Warlord | Found Prototype Energy Cannon 26564 | -4/Warlord | Identified Vortex Driver 26565 | -4/Warlord | Warlord's base attacked by MAIN.C 26572 | -4/Warlord | Found Vortex Driver 26695 | -4/Warlord | Rebuked by Warlord 26736 | -4/Warlord | Found Prototype Device 26736 | -4/Warlord | Identified Exp. Focal Shield 26741 | -4/Warlord | Found Prototype Processor 26741 | -4/Warlord | Identified Exp. Core Analyzer 26749 | -4/Warlord | Found Prototype Processor 26749 | -4/Warlord | Identified Exp. Targeting Computer 26766 | -4/Warlord | Found Prototype Reactor 26766 | -4/Warlord | Identified Vortex Chain Reactor 26909 | -4/Warlord | Spotted Executioner 26909 | -4/Warlord | Spotted B-90 Cyclops 26913 | -4/Warlord | Spotted B-86 Titan 26914 | -4/Warlord | Allies destroyed Executioner 26915 | -4/Warlord | Warlord forces counterattacked 26955 | -4/Warlord | Found Prototype Ballistic Cannon 26955 | -4/Warlord | Identified Hvy. Autocannon 26991 | -4/Warlord | Lost 9 allies 27026 | -4/Warlord | Discovered new exit (range 16) 27047 | -4/Warlord | Entered Proximity Caves 27048 | -3/Proximity Caves | Identified exit to Research 27162 | -3/Proximity Caves | Joined by bewildered Wizard 27164 | -3/Proximity Caves | Joined by bewildered Wizard 27164 | -3/Proximity Caves | Joined by bewildered Wizard 27297 | -3/Proximity Caves | Joined by bewildered Wizard 27336 | -3/Proximity Caves | Build established: Gunner 27376 | -3/Proximity Caves | Lost 4 allies 27843 | -3/Proximity Caves | Build established: Scavenger-Gunner 28135 | -3/Proximity Caves | Entered Research 28135 | -3/Research | Evolved 2 slots: Propulsion x2 28136 | -3/Research | Identified exit to Armory 28138 | -3/Research | Loaded intel: 109 machine locations 28139 | -3/Research | Loaded intel: 44 interactive machine locations 28140 | -3/Research | Loaded intel: 24 terminal locations 28335 | -3/Research | Revision forces began assault on 0b10 28427 | -3/Research | Met up with Revision 17++ 28758 | -3/Research | Spotted B-86 Titan 28773 | -3/Research | Destroyed B-86 Titan 28835 | -3/Research | Research terminal network offline 29209 | -3/Research | Lost 3 allies 29295 | -3/Research | Discovered new exit (range 9) 29310 | -3/Research | Identified exit to Research 29335 | -3/Research | Spotted Executioner 29335 | -3/Research | Spotted Striker 29337 | -3/Research | Spotted Striker 29382 | -3/Research | Spotted Striker 29429 | -3/Research | Lost 8 allies 29459 | -3/Research | Destroyed Striker 29560 | -3/Research | Discovered new exit (range 5) 29567 | -3/Research | Entered Quarantine 29603 | -3/Quarantine | Found Alien Slashing Weapon 29625 | -3/Quarantine | Found Alien Artifact 30347 | -3/Quarantine | System corruption reached 10% 30613 | -3/Quarantine | Found Alien Artifact 30650 | -3/Quarantine | Build established: Hacker-Gunner 30778 | -3/Quarantine | Repaired Centrium Heavy Treads? 30929 | -3/Quarantine | Repaired Centrium Heavy Treads 31222 | -3/Quarantine | Found Prototype Device 31222 | -3/Quarantine | Identified Exp. Thermal Shield 31262 | -3/Quarantine | Spotted Alpha 7 31301 | -3/Quarantine | Found Alien Launcher 31407 | -3/Quarantine | Found Alien Artifact 31594 | -3/Quarantine | Build established: Scavenger-Gunner 31632 | -3/Quarantine | Entered Research 31632 | -2/Research | Evolved 2 slots: Utility x2 31632 | -2/Research | Identified Phase Armor 31730 | -2/Research | Identified exit to Testing 32139 | -2/Research | Identified Subatomic Replicator 32139 | -2/Research | Identified Transdimensional Reconstructor (x2) 32139 | -2/Research | Identified Sigix Terminator 32139 | -2/Research | Identified Sigix Broadsword 32379 | -2/Research | Scrapoids reinforcements arrived? 32484 | -2/Research | Lost 4 allies 32712 | -2/Research | P-80 Master assimilated allied 02R22-D 32766 | -2/Research | Found Exp. Terrain Scanner 33132 | -2/Research | First assault squad dispatched 33175 | -2/Research | Entered Testing 33639 | -2/Testing | Found Prototype Energy Cannon 33639 | -2/Testing | Identified Disintegrator 33759 | -2/Testing | Build established: Hacker-Mutant 34249 | -2/Testing | Discovered new exit (range 22) 34449 | -2/Testing | System corruption reached 10% 34641 | -2/Testing | Found Prototype Hackware 34764 | -2/Testing | Found Prototype Launcher 34764 | -2/Testing | Identified Enh. Gamma Bomb Array 34866 | -2/Testing | Spotted PH-VHAQMJTVD9 34876 | -2/Testing | Warped through subspace 35016 | -2/Testing | Spotted Fortress 35156 | -2/Testing | Discovered new exit (range 6) 35164 | -2/Testing | Entered Section 7 35199 | -2/Section 7 | Found Alien Artifact 35308 | -2/Section 7 | Found Alien Artifact 35380 | -2/Section 7 | Build established: Mutant 35408 | -2/Section 7 | Found Alien Artifact 35437 | -2/Section 7 | Warped through subspace 35438 | -2/Section 7 | Core integrity fell below 50% 35672 | -2/Section 7 | Identified Microwarp Drive 35680 | -2/Section 7 | Spotted S7 Guard 35777 | -2/Section 7 | Destroyed S7 Guard 35816 | -2/Section 7 | Found Alien Artifact 35816 | -2/Section 7 | Identified Integrated Thermoelectric Network 35816 | -2/Section 7 | Installed Integrated Thermoelectric Network, gained heat-energy exchange potential 36019 | -2/Section 7 | Spotted B-90 Cyclops 36032 | -2/Section 7 | Found Unknown Launcher 36032 | -2/Section 7 | Identified Fusion Bomb Launcher 36135 | -2/Section 7 | Spotted S7 Guard 36367 | -2/Section 7 | Destroyed S7 Guard 36540 | -2/Section 7 | Spotted S7 Guard 36667 | -2/Section 7 | Found Alien Artifact 36667 | -2/Section 7 | Identified Integrated Mediator 36667 | -2/Section 7 | Installed Integrated Mediator, increased core attachment efficiency 36699 | -2/Section 7 | Identified Exp. System Shield 36728 | -2/Section 7 | Found Alien Artifact 36728 | -2/Section 7 | Identified Navigation Efficiency Matrix 36728 | -2/Section 7 | Installed Navigation Efficiency Matrix, process failed with unexpected side effects 36878 | -2/Section 7 | Found Alien Artifact 36878 | -2/Section 7 | Identified Core Physics Calibrator 36897 | -2/Section 7 | Core integrity fell below 20% 36939 | -2/Section 7 | Spotted Alpha 7 36953 | -2/Section 7 | First assault squad dispatched 36961 | -2/Section 7 | System corruption reached 30% 37010 | -2/Section 7 | Spotted S7 Guard 37019 | -2/Section 7 | Found Alien Artifact 37019 | -2/Section 7 | Identified Core Membrane 37019 | -2/Section 7 | Installed Core Membrane, gained immunity to corruption 37042 | -2/Section 7 | Discovered new exit (range 10) 37044 | -2/Section 7 | Destroyed by H-88 Terminator with Heavy Machine Gun Last Messages --------------- FAILED. SECURING TERMINAL." 37030_ Slug penetrates M-36 Artificer. 37030_ Penetrated by Slug. 37031_ O-24 Administrator sends out distress signal. 37033_ O-24 Administrator uses terminal to summon reinforcements. 37033_ ALERT: Hostiles spotted, dispatching reinforcements to Terminal 7018. 37033_ O-24 Administrator locks terminal. 37035_ M-36 Artificer repairs G-73 Enforcer. 37036_ Penetrated by Slug. 37037_ Adv. Heavy Siege Treads destroyed. 37038_ System corrupted: Heat flow error (+289). 37042_ Connecting with Terminal... 37042_ EXIT=FOUND 37042_ Microwarped (distance 2). 37044_ Slug penetrates Door. 37044_ Penetrated by Slug. 37044_ Graviton Cannon destroyed. Map ----- +----------------------------------------------------+ | | | | | | | | | | | | | | | | | | | | | | | | | | | ??#???#??????????????????????????????????????????? | | ?#?#???#?????????????????????????????????????????? | | ?????????????????????????????????????????????????? | | ?????????????????????????????????????????????????? | | #????????????????????????????????????????????????? | | ???????????????##?#??????????????????????????????? | | ??????#? ??????# ??????????????????????????????? | | ???????????????# ?????????????????????????????? | | ????#??????????# < #####+##?????????????????????? | | ???????????????+ #?????????????????????? | | ?##????????????# #####?????????????????? | | ???????????????# ggA ??????????????????? | | ??####?????#???# g @g###???????????????????? | | ??????##?????????#"T###g oT#???????????????????? | | ??#?????#???????????### ""#???????????????????? | | #???????????????????#"" ###???????????????????? | | ?????????#???????#??#"T #?????????????????????? | | ???#???????????#????### #?????????????????????? | | #??#?#?###?????########c #?????????????????????? | | #?????#????????#"""" # #?? ??????????????????? | | ???????#?????#?#" " # #??? ????????????????? | | ??#???????#???##"" # #?????????????????????? | | ???#???????#??##""" # #??#???? ?????????????? | | #?#????????????#" " ; #?????#???????????????? | | ##?#????????##?#"" # #?????????????????????? | | #?#??#??#??????#"" # #??????#??????????????? | | ???????????????#" #b ^ #?#???????????????????? | | ??#??#??#??????#"" # hgg#?????????????????????? | | ??#?#?##???###?######## #?????????????????????? | | ?#?????????#?#????#?#?# #???#????#????????????? | | ?###???????##???#?#???# #??????????? ?????????? | | #?#?#???#????????##???# #?????????????????????? | | ?#??##????#?##?#????#?# #??? ?????????????????? | | ????#??##?###?#?#??#??# #?? ??#???????????????? | | ???#??????#?????##?#??# #??? ??????"??????????? | | #??????##?#?########### #?????????????????????? | | ?#?##?##?#??#"""""""#?# #???????????? ????????? | +----------------------------------------------------+ Best States ------------- Heat Dissipation 98 Coolant Potential 120 Energy Generation 61 Energy Capacity 1200 Matter Stores 300 Matter Capacity 300 Sight Range 23 Terrain Scan Range 30 Terrain Scan Density 10 ECM Strength 1 Jamming Range 16 Cloak Strength 3 Corruption Containment 12 Armor Coverage 1720 Resistance: KI 30 Resistance: TH 30 Weapon Shielding 90 Point Defense Rating 240 Evasion (%) 40 Targeting Accuracy 12 Target Analysis 8 Core Analysis 8 Recoil Reduction 6 Kinecelleration 40 Salvage Targeting 4 Offensive Hacking 42 Defensive Hacking 16 Authchip Count 1 Item Schematics ----------------- Imp. Heavy Armor Plating | -5/Factory | Scanalyzed Assault Drone Bay | -5/Zhirov | Free Exp. Heat Sink | -5/Zhirov | Free Exp. Optical Array | -5/Zhirov | Free Imp. Arc Thrower | -5/Zhirov | Free Biometal Heavy Treads | -3/Quarantine | Hacked Robot Schematics ------------------ None Fabricated ------------ Nothing Alien Tech Used ----------------- Phase Armor Sigix Broadsword Transdimensional Reconstructor Microwarp Drive Integrated Thermoelectric Network Integrated Mediator Navigation Efficiency Matrix Core Physics Calibrator Core Membrane Achievements -------------- None Challenges ------------ None Game ------ Seed CompactScrapModule Manual? 0 Play Time 11:54:36 Cumulative 207.9 hours Start 2024.09.15 @ 01:07:23 End 2024.09.20 @ 21:21:08 Sessions 29 Manual Loads 0 Difficulty Rogue Special Mode None Game No. 43 Rogue 43 Adventurer 0 Explorer 0 Win Type - Total 3 Types 1/0/1/1/0/0/0/0/0 Lore% 63 Gallery% 63 Achievement% 63 Wizard Run 0 Options --------- Layout 2 ASCII 0 Keyboard 1 Movement Vi Keybinds 1 Fullscreen 1 Font 24/Tamsyn Map View 50x44 Zoom Use 0% Tactical HUD 1 Map Filters NONE Filters NONE Steam 1 RUN: aabbd7ef-19c6-4d66-8c84-aee17f0d427f